[Event "FIDE WCCC U12 2018"]
[Site "Santiago de Compostela"]
[Date "2018.11.11"]
[Round "7"]
[White "Nahornyi, Ihor"]
[Black "Silich, Yahor"]
[Result "0-1"]
[ECO "B34"]
[WhiteElo "1900"]
[BlackElo "2058"]
[Annotator "NA RC"]
[PlyCount "196"]
[EventDate "2018.11.04"]
[EventType "swiss"]
[EventCountry "ESP"]
[SourceTitle "playchess.com"]
[Source "ChessBase"]
[SourceQuality "1"]
[TimeControl "40/5400+30:1800+30"]

{[%evp 19,196,0,32767,7,17,14,0,-35,10,9,9,7,0,0,0,32767,32767,19,20,14,28,32767,32767,32767,32767,32767,39,32767,32767,32767,-140,-216,-93,-82,-79,-134,-143,-156,-133,-141,-87,-95,-91,-97,-91,-91,-93,-94,-80,-122,-122,-110,-94,-112,-114,-96,-102,-104,-91,-108,-102,-109,-110,-116,32767,-101,32767,32767,32767,-56,-56,-52,-84,-61,-44,-54,-60,-56,-58,-50,-45,-55,-54,32767,32767,32767,32767,-35,32767,32767,32767,-50,-46,-50,32767,32767,-53,-73,-49,-54,0,-97,-71,-97,-46,-54,-51,-46,32767,32767,32767,32767,32767,32767,32767,32767,32767,32767,32767,32767,32767,32767,32767,32767,32767,32767,0,-49,32767,32767,32767,32767,32767,-64,32767,32767,32767,32767,32767,32767,32767,32767,32767,32767,0,-68,-58,-55,-50,-58,32767,32767,32767,-86,-96,-68,-27,-81,-85,-94,-89,-62,-91,-145,-102,-188,-190,-190,-243,-739,-768,-1002,-1376,-1137,-1519,-1728,-6203,-1096,-5222]} 1. e4 {[%emt 0:00:00]} c5 {[%emt 0:00:00]} 2. Nf3 {[%emt 0:00:00]} Nc6 {[%emt 0:00:00]} 3. d4 {[%emt 0:00:10]} cxd4 {[%emt 0:00:11]} 4. Nxd4 {[%emt 0:00:03]} g6 {[%emt 0:00:10]} 5. Nc3 {[%emt 0:00:15]} Bg7 {[%emt 0:00:37]} 6. Nb3 {[%emt 0:00:17]} Nf6 {[%emt 0:00:16]} 7. Be2 {[%emt 0:00:56]} O-O {[%emt 0:00:23]} 8. O-O {[%emt 0:00:27]} d6 {[%emt 0:00:36]} 9. Bg5 {[%emt 0:00:22]} a6 {[%emt 0:00:43]} 10. Re1 {[%emt 0:06:21]} Be6 {[%emt 0:01:25] B70: Sicilian Dragon: 6 g3 and 6 Be2 (without a later Be3)} 11. Bf1 {[%emt 0:07:28]} h6 {[%emt 0:05:30]} 12. Bh4 {[%emt 0:04:21]} Rc8 {[%emt 0:06:25]} 13. f4 {[%emt 0:14:42]} (13. Nd5 Bxd5 14. exd5 Ne5 15. c3 Nc4 16. Rb1 Re8 17. Qf3 Ne5 18. Qd1 Qd7 {½-½ (18) Rublevsky,S (2692)-Morozevich,A (2683) Cheboksary 2016}) 13... b5 $146 {[%emt 0:19:20]} ({Predecessor:} 13... Ng4 14. Kh1 Bxb3 15. axb3 h5 16. h3 Nh6 17. Bc4 Nb4 18. Ra4 Nxc2 19. Qxc2 {1-0 (28) Puppi Lazo,J (1873)-Rodas Quilca,C Lima 2012}) 14. Nd5 {[%emt 0:03:30]} Bxd5 {[%emt 0:13:41]} 15. exd5 {[%emt 0:01:28]} Na5 {[%emt 0:09:41]} ({Don't play} 15... Nb4 16. Bxf6 Nxc2 17. Bxg7 $16 (17. Bxe7 Qb6+ 18. Kh1 Rfe8 $14)) 16. Nxa5 {[%emt 0:30:18]} Qxa5 {[%emt 0:00:06]} 17. c3 {[%emt 0:06:53]} b4 {[%emt 0:06:22]} 18. c4 $1 {[%emt 0:02:08]} Rfe8 {[%emt 0:03:21]} 19. Qd2 {[%emt 0:01:58]} Qa4 {[%emt 0:05:29]} 20. a3 {[%emt 0:02:26]} b3 {[%emt 0:02:29]} 21. Re3 {[%emt 0:04:33]} Rb8 {[%emt 0:06:04]} 22. Rae1 {[%emt 0:02:19]} Qd7 {[%emt 0:00:37]} 23. Rd3 {[%emt 0:01:14]} Qf5 {[%emt 0:01:36]} 24. Qe2 {[%emt 0:01:45]} Qxf4 {[%emt 0:05:39]} 25. Rh3 {[%emt 0:04:23]} Qd4+ {[%emt 0:02:11]} (25... Ng4 $19 26. Rd1 h5) 26. Bf2 {[%emt 0:00:23]} Qg4 {[%emt 0:00:06]} 27. Re3 {[%emt 0:00:43]} (27. Rf3 $142) 27... Qxe2 {[%emt 0:00:48]} 28. Bxe2 {[%emt 0:03:09]} Nd7 {[%emt 0:01:56]} 29. Bd1 {[%emt 0:01:01]} Nc5 {[%emt 0:02:28]} 30. Rf3 {[%emt 0:00:50]} Bxb2 {[%emt 0:05:39]} 31. Bxc5 {[%emt 0:00:08]} dxc5 {[%emt 0:00:04]} 32. Bxb3 {[%emt 0:00:32]} Bd4+ {[%emt 0:01:04]} ({Much weaker is} 32... Bxa3 $6 33. Ba4 $11) 33. Kf1 {[%emt 0:00:31]} Kf8 {[%emt 0:00:24]} 34. h4 {[%emt 0:00:30]} h5 {[%emt 0:00:49]} 35. Bc2 {[%emt 0:00:19]} Rb6 {[%emt 0:00:20]} 36. Rb1 {[%emt 0:00:55]} Rxb1+ {[%emt 0:00:55]} 37. Bxb1 {[%emt 0:00:06]} Kg7 {[%emt 0:00:27]} 38. Rb3 {[%emt 0:00:01]} Rd8 {[%emt 0:00:34]} 39. Ke2 {[%emt 0:00:44]} Bf6 {[%emt 0:00:16]} 40. g3 {[%emt 0:00:00]} Be5 {[%emt 0:00:00]} 41. Kf3 {[%emt 0:04:40]} Bd6 {[%emt 0:03:29]} 42. Bc2 {[%emt 0:02:59]} Rb8 {[%emt 0:02:54]} 43. Rxb8 {[%emt 0:01:11]} Bxb8 {[%emt 0:00:02]} 44. Ba4 $1 {[%emt 0:00:39]} Be5 {[%emt 0:01:07]} 45. Bc6 {[%emt 0:01:24]} a5 {[%emt 0:01:07]} 46. a4 {[%emt 0:00:38]} Bc3 {[%emt 0:01:44]} 47. Ke4 {[%emt 0:05:02]} Be1 {[%emt 0:00:37]} 48. Kf4 {[%emt 0:01:57]} Kf6 {[%emt 0:01:18]} 49. Be8 {[%emt 0:01:25]} Bd2+ {[%emt 0:01:33]} 50. Kf3 {[%emt 0:01:25]} Bc3 {[%emt 0:03:03]} 51. Kf4 {[%emt 0:01:37]} Be5+ {[%emt 0:00:15]} 52. Kf3 {[%emt 0:00:03]} Bd6 {[%emt 0:00:04]} 53. Kf2 {[%emt 0:03:21]} Kg7 {[%emt 0:01:18]} (53... e5 $15 54. dxe6 Kxe6) 54. Kf3 {[%emt 0:00:22]} Be5 {[%emt 0:00:27]} 55. Kf2 {[%emt 0:00:42]} Bc3 {[%emt 0:00:13]} 56. Kf3 $1 {[%emt 0:00:19]} Bd2 {[%emt 0:00:06]} 57. Ke2 {[%emt 0:00:25]} Bc1 {[%emt 0:00:05]} 58. Kf3 {[%emt 0:00:32]} Bb2 {[%emt 0:01:37]} 59. Kf4 {[%emt 0:00:35]} Bc3 {[%emt 0:01:20]} 60. Kf3 {[%emt 0:00:36]} Be1 {[%emt 0:00:42]} 61. Kf4 {[%emt 0:00:25]} Kf6 {[%emt 0:03:19]} 62. Kf3 $1 {[%emt 0:01:18]} Bd2 {[%emt 0:00:25]} 63. Ke2 {[%emt 0:00:29]} Bc1 {[%emt 0:00:04]} 64. Kf3 {[%emt 0:00:29]} Ba3 {[%emt 0:00:25]} 65. Ke4 {[%emt 0:00:36]} Bb2 {[%emt 0:00:10]} 66. Kf4 {[%emt 0:00:10]} Bc3 {[%emt 0:01:10]} 67. Kf3 {[%emt 0:00:43]} Be1 {[%emt 0:00:18]} 68. Kf4 {[%emt 0:00:46]} Bc3 {[%emt 0:01:13]} 69. Kf3 {[%emt 0:00:17]} Be5 {[%emt 0:00:21]} 70. Kf2 {[%emt 0:00:14]} Bc7 {[%emt 0:00:11]} 71. Kf3 {[%emt 0:00:41]} Bd6 {[%emt 0:00:10]} 72. Kf2 {[%emt 0:01:20]} Kg7 {[%emt 0:05:57]} 73. Kf3 {[%emt 0:00:51]} Kf8 {[%emt 0:00:43]} 74. Bd7 {[%emt 0:01:41]} Be5 {[%emt 0:00:13]} 75. Kf2 {[%emt 0:00:37]} f5 {[%emt 0:01:27]} 76. Kf3 {[%emt 0:00:23]} Kf7 {[%emt 0:00:11]} 77. Bc8 {[%emt 0:01:53]} Bc3 {[%emt 0:00:06]} 78. Bd7 $1 $11 {[%emt 0:00:19]} Be1 {[%emt 0:00:04]} 79. Kf4 {[%emt 0:00:18]} Bd2+ {[%emt 0:00:37]} 80. Ke5 {[%emt 0:01:21]} Be1 {[%emt 0:00:18]} 81. Kf4 {[%emt 0:00:06]} Bc3 {[%emt 0:00:21]} 82. Bc6 {[%emt 0:00:55]} Bd2+ {[%emt 0:00:17]} 83. Ke5 {[%emt 0:00:14]} Be1 {[%emt 0:00:59]} 84. Kf4 $1 {[%emt 0:00:04]} Bf2 {[%emt 0:00:02]} 85. Bd7 {[%emt 0:00:10]} Be1 {[%emt 0:00:06]} 86. Bc6 {[%emt 0:00:12]} Kf6 {[%emt 0:01:36]} 87. Be8 {[%emt 0:00:17]} Bd2+ {[%emt 0:00:29]} 88. Kf3 {[%emt 0:00:09]} Bc1 {[%emt 0:00:05]} 89. Bd7 {[%emt 0:00:52]} Ke5 {[%emt 0:00:31]} 90. Be8 {[%emt 0:00:12]} Kd4 {[%emt 0:01:42]} 91. Bb5 {[%emt 0:00:31]} Kd3 {[%emt 0:00:28]} 92. Be8 {[%emt 0:06:39]} Kxc4 {[%emt 0:00:30]} 93. Bxg6 {[%emt 0:00:02]} Kb3 {[%emt 0:03:50]} ({Less strong is} 93... Kxd5 94. Bxf5 Kc4 95. Bc2 $17) 94. Bxh5 {[%emt 0:01:16]} Kxa4 {[%emt 0:00:29]} 95. Bg6 {[%emt 0:00:38]} Kb3 {[%emt 0:00:26]} 96. Bxf5 {[%emt 0:00:16]} a4 {[%emt 0:00:36]} 97. g4 {[%emt 0:01:54]} a3 {[%emt 0:00:06]} 98. Bb1 {[%emt 0:00:03]} Kb2 $19 {[%emt 0:00:13]} (98... a2 $142 99. Bxa2+ Kxa2 100. h5 c4 101. Ke4 Bb2 102. g5 c3 103. g6 c2 104. Kf5 c1=Q 105. Ke6 Qg5 106. Kd7 Ba3 107. Ke6 Qxh5 108. g7 Qg6+ 109. Kd7 Qxg7 110. Kc7 e5+ 111. Kc6 Qe7 112. d6 Qxd6+ 113. Kb7 Bc5 114. Kc8 Qc6+ 115. Kb8 Qd7 116. Ka8 Qc8#) 0-1

[Event "FIDE WCCC U12 2018"]
[Site "Santiago de Compostela"]
[Date "2018.11.11"]
[Round "7"]
[White "Ristic, Luka"]
[Black "Mekhane, Adam"]
[Result "1/2-1/2"]
[ECO "C48"]
[WhiteElo "1897"]
[BlackElo "2065"]
[Annotator "NA RC"]
[PlyCount "65"]
[EventDate "2018.11.04"]
[EventType "swiss"]
[EventCountry "ESP"]
[SourceTitle "playchess.com"]
[Source "ChessBase"]
[SourceQuality "1"]
[TimeControl "40/5400+30:1800+30"]

{[%evp 15,52,-20,32767,-27,-16,0,-12,-19,0,-7,108,108,32767,122,440,32767,470,207,224,208,218,220,216,192,189,193,197,146,168,118,168,104,116,32767,48,32767,54,45,42]} 1. e4 {[%emt 0:00:00]} e5 {[%emt 0:00:00]} 2. Nf3 {[%emt 0:00:00]} Nc6 {[%emt 0:00:00]} 3. Nc3 {[%emt 0:00:00]} Nf6 {[%emt 0:00:00]} 4. Bb5 {[%emt 0:00:07]} Nd4 {[%emt 0:00:12]} 5. Bc4 {[%emt 0:00:35]} Bc5 {[%emt 0:00:30]} 6. d3 {[%emt 0:00:53]} d6 {[%emt 0:01:40]} 7. Nxd4 {[%emt 0:02:21]} Bxd4 {[%emt 0:03:09] C48: Four Knights: 4 Bb5, replies other than 4...Bb4} 8. Ne2 {[%emt 0:00:39] LiveBook: 3 Games} Bb6 {[%emt 0:03:03]} 9. O-O {[%emt 0:03:43]} (9. h3 d5 10. exd5 Nxd5 11. O-O O-O 12. d4 exd4 13. Nxd4 Nb4 14. c3 Bxd4 15. cxd4 {½-½ (27) Abdusattorov,N (2534)-Wagner,D (2558) Biel 2018}) 9... h6 {[%emt 0:06:21]} 10. h3 {[%emt 0:02:50]} O-O {[%emt 0:02:27]} 11. Ng3 $146 {[%emt 0:06:26]} ({Predecessor:} 11. a4 a5 12. Ng3 Be6 13. Ba2 Qd7 14. Bxe6 fxe6 15. Qe2 Qf7 16. Be3 Bxe3 17. Qxe3 Nh5 18. Nxh5 Qxh5 19. f4 exf4 20. Rxf4 Rxf4 21. Qxf4 Qc5+ 22. Qf2 Qxf2+ {½-½ (22) Joergensmann,R (1821)-Nolting,B (1743) Germany 2003}) 11... Be6 {[%emt 0:11:46]} 12. Qf3 {[%emt 0:07:41]} Qd7 {[%emt 0:05:24] [#]} (12... c6 $11) 13. Bxh6 $1 {[%emt 0:01:04]} d5 {[%emt 0:13:47]} 14. exd5 {[%emt 0:01:26]} Nxd5 $2 {[%emt 0:02:32]} (14... Bxd5 $16 {is a better chance.} 15. Bxd5 Qxd5) 15. Nh5 {[%emt 0:01:42]} Nf4 {[%emt 0:05:53]} 16. Bxf4 {[%emt 0:02:19]} (16. Bxg7 $142 Nxh5 17. Bxf8 (17. Qxh5 Kxg7 18. Qxe5+ Kg6 $14)) 16... exf4 {[%emt 0:01:08]} 17. Qxf4 {[%emt 0:00:20]} Bxc4 {[%emt 0:02:01]} 18. dxc4 {[%emt 0:00:12]} ({Don't do} 18. Qxc4 $6 Qf5) 18... Qd4 {[%emt 0:02:15]} 19. Qxd4 {[%emt 0:00:58]} Bxd4 {[%emt 0:00:02]} 20. c3 {[%emt 0:00:07]} Be5 {[%emt 0:00:54]} 21. f4 {[%emt 0:01:59]} Bd6 {[%emt 0:00:35]} 22. Rad1 {[%emt 0:00:31]} Rad8 {[%emt 0:02:09]} 23. b4 $16 {[%emt 0:01:42]} b6 {[%emt 0:00:30]} 24. g3 {[%emt 0:03:48]} f5 {[%emt 0:03:52]} 25. g4 {[%emt 0:04:18]} fxg4 {[%emt 0:00:31]} 26. hxg4 {[%emt 0:00:20]} Bxf4 {[%emt 0:03:18]} 27. Nxf4 Rxd1 28. Rxd1 Rxf4 29. Rd4 Rf3 30. Rd8+ Kh7 31. Rd7 Rxc3 32. Rxc7 Ra3 33. c5 1/2-1/2

[Event "FIDE WCCC U12 2018"]
[Site "Santiago de Compostela"]
[Date "2018.11.11"]
[Round "7"]
[White "Suleymanli, Suleyman"]
[Black "Yoon, Jacob D"]
[Result "1-0"]
[ECO "A40"]
[WhiteElo "1882"]
[BlackElo "2048"]
[Annotator "NA RC"]
[PlyCount "94"]
[EventDate "2018.11.04"]
[EventType "swiss"]
[EventCountry "ESP"]
[SourceTitle "playchess.com"]
[Source "ChessBase"]
[SourceQuality "1"]
[TimeControl "40/5400+30:1800+30"]

1. d4 {[%emt 0:00:00]} e6 {[%emt 0:00:00]} 2. c4 {[%emt 0:00:00]} b6 {[%emt 0:00:00]} 3. Nc3 {[%emt 0:00:08]} Bb4 {[%emt 0:00:00]} 4. Nf3 {[%emt 0:00:36]} Bb7 {[%emt 0:00:00]} 5. e3 {[%emt 0:00:55]} f5 {[%emt 0:00:00]} 6. Be2 {[%emt 0:00:39]} Nf6 {[%emt 0:01:13]} 7. O-O {[%emt 0:01:24]} Bxc3 {[%emt 0:00:09]} 8. bxc3 {[%emt 0:00:33]} O-O {[%emt 0:00:13] A85: Dutch Defence: 2 c4 Nf6 3 Nc3} 9. Ne5 {[%emt 0:02:32]} Nc6 $146 {[%emt 0:07:09]} ({Predecessor:} 9... d6 10. Nd3 c5 11. a4 a5 12. f3 Qe7 13. Nf2 {1-0 (52) Mueller,R (2337)-Werner,C (2315) Germany 2005}) 10. Bf3 {[%emt 0:06:20]} Ne4 {[%emt 0:02:39]} 11. Nxc6 {[%emt 0:01:49]} Bxc6 {[%emt 0:00:15]} 12. Qd3 {[%emt 0:05:02]} Bb7 {[%emt 0:13:35]} 13. Ba3 {[%emt 0:04:26]} Rf6 {[%emt 0:13:39]} 14. d5 {[%emt 0:04:28]} Rh6 {[%emt 0:04:03]} 15. g3 {[%emt 0:06:15]} Nf6 {[%emt 0:07:56]} 16. Qd4 {[%emt 0:08:10]} (16. Rad1 $15) 16... Qe8 {[%emt 0:13:30]} 17. Qf4 {[%emt 0:19:32]} e5 {[%emt 0:07:09]} 18. Qxf5 {[%emt 0:01:22]} Ba6 {[%emt 0:00:04]} 19. e4 {[%emt 0:05:02]} Bxc4 {[%emt 0:01:20]} 20. Rfe1 {[%emt 0:00:29]} d6 {[%emt 0:01:27]} 21. Bc1 {[%emt 0:00:37]} Rg6 {[%emt 0:00:43]} 22. h4 {[%emt 0:05:14]} Bb5 {[%emt 0:02:07]} 23. Qe6+ {[%emt 0:01:55]} Qxe6 {[%emt 0:00:21]} 24. dxe6 {[%emt 0:00:06]} h5 {[%emt 0:07:17]} 25. Bg5 {[%emt 0:02:33]} Bc4 {[%emt 0:00:32]} 26. e7 {[%emt 0:01:36]} Be6 {[%emt 0:01:40]} (26... Re8 $11) 27. Bd1 {[%emt 0:00:46]} Nh7 {[%emt 0:09:27]} 28. Bxh5 {[%emt 0:01:32]} Nxg5 {[%emt 0:00:02]} 29. hxg5 {[%emt 0:00:29]} Bf7 {[%emt 0:00:03]} 30. Bxg6 {[%emt 0:00:11]} Bxg6 {[%emt 0:00:02]} 31. f4 {[%emt 0:00:22]} Kf7 {[%emt 0:00:54]} 32. f5 {[%emt 0:00:14]} Bh5 {[%emt 0:00:02]} 33. Kf2 {[%emt 0:00:34]} Kxe7 {[%emt 0:00:15]} 34. g6 {[%emt 0:00:34]} Kf6 {[%emt 0:00:11]} 35. Rh1 {[%emt 0:00:45]} Kg5 {[%emt 0:00:01] [#]} 36. g4 $1 {[%emt 0:01:19]} Bxg4 {[%emt 0:00:03]} 37. Rag1 {[%emt 0:01:00]} d5 {[%emt 0:00:23]} 38. Rg3 {[%emt 0:00:51]} dxe4 {[%emt 0:00:04]} 39. Rhg1 {[%emt 0:00:25]} Rd8 {[%emt 0:00:01]} 40. Rxg4+ {[%emt 0:00:00]} Kxf5 {[%emt 0:00:00]} 41. Rg5+ {[%emt 0:00:25]} Kf6 {[%emt 0:00:07]} 42. Ke3 {[%emt 0:00:09]} Rd3+ {[%emt 0:00:04]} 43. Kxe4 {[%emt 0:00:08]} Rxc3 {[%emt 0:00:01]} 44. Rf5+ {[%emt 0:00:14]} Ke6 {[%emt 0:00:03]} 45. Rxe5+ {[%emt 0:00:07]} Kd6 {[%emt 0:00:02]} 46. Rd1+ {[%emt 0:00:11]} Kc6 {[%emt 0:00:02]} 47. Re7 $18 {[%emt 0:00:31]} Rc2 1-0

[Event "FIDE WCCC U12 2018"]
[Site "Santiago de Compostela"]
[Date "2018.11.11"]
[Round "7"]
[White "Amilal, Munkhdalai"]
[Black "Xu, Arthur"]
[Result "1/2-1/2"]
[ECO "D02"]
[WhiteElo "1864"]
[BlackElo "2034"]
[Annotator "NA RC"]
[PlyCount "148"]
[EventDate "2018.11.04"]
[EventType "swiss"]
[EventCountry "ESP"]
[SourceTitle "playchess.com"]
[Source "ChessBase"]
[SourceQuality "1"]
[TimeControl "40/5400+30:1800+30"]

{[%evp 18,135,67,31,51,27,72,35,37,19,27,20,32767,32767,28,0,8,-2,18,0,32767,32767,34,32767,32767,32767,32767,32767,14,-20,32767,32767,0,0,0,32767,32767,32767,32767,32767,-46,32767,32767,32767,32767,-25,-12,-51,-67,-70,-50,-101,-114,-145,-145,-173,-29,-40,-26,-43,-33,-41,-43,-18,-23,-40,-40,-48,-20,32767,-9,32767,32767,32767,-14,32767,0,0,0,-8,0,0,0,0,0,0,0,0,0,0,0,0,0,32767,32767,32767,32767,0,0,0,0,0,32767,32767,32767,0,32767,32767,0,0,32767,32767,32767,32767,32767,32767,0,-7,0,0]} 1. d4 {[%emt 0:00:00]} d5 {[%emt 0:00:00]} 2. Nf3 {[%emt 0:00:00]} Nc6 {[%emt 0:00:00]} 3. Bf4 {[%emt 0:00:00]} Bg4 {[%emt 0:00:00]} 4. e3 {[%emt 0:00:10]} e6 {[%emt 0:00:00]} 5. Nbd2 {[%emt 0:00:36]} Bd6 {[%emt 0:00:26]} 6. Bxd6 {[%emt 0:00:09]} Qxd6 {[%emt 0:00:09]} 7. Be2 {[%emt 0:02:35] D02: Damenbauernspiele} Nge7 {[%emt 0:01:56]} (7... f5 8. a3 Nf6 9. c4 O-O 10. O-O a5 11. Rc1 Nd7 12. g3 h6 13. cxd5 exd5 14. Nb3 Nd8 {0-1 (41) Alarcia Astiz,C (2331)-Perez Mitjans,O (2432) Madrid 2017}) 8. O-O {[%emt 0:01:15]} Bxf3 $146 {[%emt 0:01:31]} ({Vorgänger:} 8... O-O 9. c4 f5 10. cxd5 exd5 11. g3 Kh8 12. Kg2 Ng8 13. Ne1 Nf6 14. Nd3 Rae8 15. Nf3 Bxf3+ 16. Bxf3 Ne4 17. a3 Nd8 {1-0 (40) Stoyanov,P (2180)-Baumhus,R (2330) Germany 2002}) 9. Nxf3 {[%emt 0:00:53]} O-O {[%emt 0:01:10]} 10. c3 {[%emt 0:06:20]} Nd8 {[%emt 0:06:27]} 11. Qc2 {[%emt 0:01:10]} f5 {[%emt 0:05:16]} 12. Ne5 {[%emt 0:00:58]} c5 {[%emt 0:05:56]} 13. Qa4 {[%emt 0:05:20]} Ndc6 {[%emt 0:04:23]} 14. Nxc6 {[%emt 0:00:16]} Nxc6 {[%emt 0:00:24]} 15. Qa3 {[%emt 0:05:56]} b6 {[%emt 0:04:21]} 16. f4 {[%emt 0:17:57]} Rfd8 {[%emt 0:09:39]} 17. b3 {[%emt 0:04:43]} a5 {[%emt 0:04:51]} 18. Bb5 {[%emt 0:05:50]} Na7 {[%emt 0:04:06]} 19. Be2 {[%emt 0:00:09]} Qc7 {[%emt 0:01:41]} 20. Rac1 {[%emt 0:00:53]} c4 {[%emt 0:09:07]} 21. bxc4 {[%emt 0:00:05]} dxc4 {[%emt 0:00:10]} 22. Bf3 {[%emt 0:00:06]} Rab8 $1 {[%emt 0:00:57]} 23. Rce1 {[%emt 0:12:30]} Nb5 {[%emt 0:13:42]} 24. Qb2 {[%emt 0:00:11]} Nd6 {[%emt 0:00:42]} 25. e4 {[%emt 0:00:12]} b5 {[%emt 0:05:22]} 26. a3 {[%emt 0:21:35]} b4 {[%emt 0:06:06]} 27. axb4 {[%emt 0:00:04]} axb4 {[%emt 0:00:09]} 28. cxb4 {[%emt 0:02:30]} Nb5 {[%emt 0:01:11]} 29. exf5 {[%emt 0:00:56]} exf5 {[%emt 0:00:25]} 30. Re5 {[%emt 0:00:05]} c3 {[%emt 0:04:27]} 31. Qf2 {[%emt 0:06:33]} Qc4 {[%emt 0:04:22]} 32. Be2 {[%emt 0:01:22]} Qxb4 {[%emt 0:00:12]} 33. Bxb5 $1 {[%emt 0:00:12]} Rxb5 {[%emt 0:00:08]} 34. Rxb5 {[%emt 0:02:19]} Qxb5 {[%emt 0:00:05]} 35. Rc1 {[%emt 0:00:27]} ({White should play} 35. Rd1) 35... Qd3 {[%emt 0:00:41]} 36. h3 {[%emt 0:01:13]} Rxd4 {[%emt 0:01:20]} (36... h6 $17 37. Kh2 Rxd4) 37. Qe1 {[%emt 0:00:22]} Re4 {[%emt 0:02:49]} 38. Qxc3 {[%emt 0:00:14]} Qxc3 {[%emt 0:00:11]} 39. Rxc3 {[%emt 0:00:04]} Rxf4 {[%emt 0:00:07]} 40. Rc5 {[%emt 0:00:00]} g6 {[%emt 0:00:00]} 41. Rc7 {[%emt 0:00:26]} Ra4 {[%emt 0:01:21]} 42. Kf2 {[%emt 0:00:18]} Ra8 {[%emt 0:06:50]} 43. Kf3 {[%emt 0:03:44]} Rf8 {[%emt 0:03:32]} 44. g4 {[%emt 0:02:20]} Rf7 {[%emt 0:06:23]} 45. Rc8+ {[%emt 0:00:45]} Kg7 {[%emt 0:00:17]} 46. gxf5 {[%emt 0:00:05]} gxf5 {[%emt 0:00:17]} 47. Kf4 {[%emt 0:01:46]} Rf6 {[%emt 0:05:15]} 48. Kg5 {[%emt 0:00:51]} h6+ {[%emt 0:00:40]} 49. Kf4 {[%emt 0:00:10]} Kg6 {[%emt 0:02:32]} 50. Rg8+ {[%emt 0:00:48]} Kf7 {[%emt 0:06:25]} 51. Ra8 {[%emt 0:00:07]} Kg7 {[%emt 0:01:37]} 52. Rb8 {[%emt 0:00:58]} Rf7 {[%emt 0:00:20]} 53. Rb6 {[%emt 0:00:08]} Kh7 {[%emt 0:00:52]} 54. Ra6 {[%emt 0:00:17]} Kg7 {[%emt 0:00:07]} 55. Rb6 {[%emt 0:00:04]} Rf6 {[%emt 0:00:04]} 56. Rb8 {[%emt 0:00:12]} Kg6 {[%emt 0:00:06]} 57. Rg8+ {[%emt 0:02:18]} Kh5 {[%emt 0:00:40]} 58. Ra8 {[%emt 0:00:10]} Kh4 {[%emt 0:00:42]} 59. Ra3 {[%emt 0:00:28]} Rf7 {[%emt 0:00:30]} 60. Rb3 {[%emt 0:00:46]} h5 {[%emt 0:00:12]} 61. Ra3 {[%emt 0:01:16]} Rf8 {[%emt 0:00:16]} 62. Rb3 {[%emt 0:00:06]} Rg8 {[%emt 0:00:50]} 63. Kxf5 {[%emt 0:00:08]} Rg5+ {[%emt 0:00:13]} 64. Kf4 {[%emt 0:00:11]} Rg1 {[%emt 0:00:09]} 65. Ra3 {[%emt 0:00:10]} Rf1+ {[%emt 0:00:10]} 66. Rf3 {[%emt 0:00:09]} Rh1 {[%emt 0:01:12]} 67. Rc3 {[%emt 0:00:07]} Rh2 {[%emt 0:00:35]} 68. Rb3 $11 {[%emt 0:00:09]} Rxh3 {[%emt 0:00:06]} 69. Rxh3+ {[%emt 0:00:12]} Kxh3 {[%emt 0:00:05]} 70. Kf3 {[%emt 0:00:04]} h4 {[%emt 0:00:08]} 71. Kf2 {[%emt 0:00:04]} Kh2 {[%emt 0:00:05]} 72. Kf1 {[%emt 0:00:04]} Kg3 {[%emt 0:00:05]} 73. Kg1 {[%emt 0:00:04]} h3 {[%emt 0:00:04]} 74. Kh1 {[%emt 0:00:03]} h2 {[%emt 0:00:05]} 1/2-1/2